fUSD/lending_fUSD_20250105
["ID","MTS","AMOUNT","RATE_DAILY","PERIOD"]
[347776873,1736100638733,-842.12,9.685e-05,2]
[347776874,1736100638742,-597.16,9.685e-05,2]
[347776875,1736100638751,-570.39,9.685e-05,2]
[347776876,1736100638761,-727.79,9.685e-05,2]
[347776877,1736100638770,-500.0,9.685e-05,2]
[347776878,1736100638780,-500.0,9.685e-05,2]
[347776879,1736100638790,-263.19402793,9.772e-05,2]
[347776880,1736100638799,-263.19402793,9.775e-05,2]
[347776881,1736100638808,-243.85288363,9.777e-05,2]
[347776882,1736100638817,-263.19402793,9.782e-05,2]
[347776883,1736100638827,-243.85288363,9.782e-05,2]
[347776884,1736100638835,-263.19402793,9.784e-05,2]
[347776885,1736100638844,-263.19402793,9.79e-05,2]
[347776886,1736100638857,-263.19402793,9.792e-05,2]
[347776887,1736100638866,-243.85288363,9.795e-05,2]
[347776888,1736100638875,-243.85288363,9.798e-05,2]
[347776889,1736100638884,-243.85288363,9.799e-05,2]
[347776890,1736100638895,-243.85288363,9.8e-05,2]
[347776891,1736100638904,-150.0,9.833e-05,2]
[347776892,1736100638913,-5630.21169908,9.857e-05,2]
[347776893,1736100639172,-5572.56880092,9.857e-05,2]
[347776894,1736100639181,-258.83923984,9.862e-05,2]
[347776895,1736100639192,-4228.49656657,9.863e-05,4]
[347776896,1736100639203,-5384.98163808,9.863e-05,4]
[347776897,1736100639213,-353.166,9.9e-05,2]
[347776898,1736100639222,-1000.0,9.9e-05,2]
[347776899,1736100639231,-15390.11873163,9.952e-05,2]
[347776900,1736100639240,-500.0,9.955e-05,2]
[347776901,1736100639249,-507.74,9.955e-05,2]
[347776902,1736100639259,-1012.79,9.955e-05,2]
[347776903,1736100639268,-1007.59,9.955e-05,2]
[347776904,1736100639278,-500.0,9.955e-05,2]
[347776905,1736100639287,-500.0,9.955e-05,2]
[347776906,1736100639298,-500.0,9.956e-05,2]
[347776907,1736100639307,-500.0,9.956e-05,2]
[347776908,1736100639317,-500.0,9.956e-05,2]
[347776909,1736100639327,-500.0,9.956e-05,2]
[347776910,1736100639336,-500.0,9.956e-05,2]
[347776911,1736100639345,-500.0,9.956e-05,2]
[347776912,1736100639355,-500.0,9.956e-05,2]
[347776914,1736100639364,-500.0,9.956e-05,2]
[347776916,1736100639373,-500.0,9.956e-05,2]
[347776917,1736100639382,-500.0,9.956e-05,2]
[347776919,1736100639392,-500.0,9.956e-05,2]
[347776921,1736100639401,-500.0,9.956e-05,2]
[347776923,1736100639410,-500.0,9.956e-05,2]
[347776924,1736100639419,-455.33218566,9.956e-05,2]
[347776925,1736100639428,-500.0,9.956e-05,2]
[347776926,1736100639437,-500.0,9.956e-05,2]
[347776927,1736100639447,-161.66073094,9.956e-05,2]
[347776928,1736100639456,-500.0,9.956e-05,2]
[347776929,1736100639465,-500.0,9.956e-05,2]
[347776930,1736100639474,-500.0,9.956e-05,2]
[347776931,1736100639482,-500.0,9.956e-05,2]
[347776932,1736100639491,-500.0,9.956e-05,2]
[347776933,1736100639500,-351.83226635,9.956e-05,2]
[347776934,1736100639509,-500.0,9.956e-05,2]
[347776935,1736100639517,-401.28327479,9.956e-05,2]
[347776936,1736100639526,-500.0,9.956e-05,2]
[347776937,1736100639535,-500.0,9.956e-05,2]
[347776938,1736100639545,-500.0,9.956e-05,2]
[347776939,1736100639554,-500.0,9.956e-05,2]
[347776940,1736100639563,-500.0,9.956e-05,2]
[347776941,1736100639572,-500.0,9.956e-05,2]
[347776942,1736100639581,-500.0,9.956e-05,2]
[347776943,1736100639591,-500.0,9.956e-05,2]
[347776944,1736100639600,-500.0,9.956e-05,2]
[347776945,1736100639609,-500.0,9.956e-05,2]
[347776946,1736100639619,-500.0,9.956e-05,2]
[347776947,1736100639628,-500.0,9.956e-05,2]
[347776948,1736100639637,-551.91,9.956e-05,2]
[347776949,1736100639646,-500.0,9.956e-05,2]
[347776950,1736100639655,-500.0,9.956e-05,2]
[347776951,1736100639665,-500.0,9.956e-05,2]
[347776952,1736100639675,-500.0,9.956e-05,2]
[347776954,1736100639684,-500.0,9.956e-05,2]
[347776955,1736100639695,-377.80554471,9.956e-05,2]
[347776956,1736100639704,-500.0,9.956e-05,2]
[347776957,1736100639713,-852.95,9.956e-05,2]
[347776958,1736100639723,-500.0,9.956e-05,2]
[347776959,1736100639733,-500.0,9.956e-05,2]
[347776960,1736100639743,-500.0,9.956e-05,2]
[347776961,1736100639752,-500.0,9.956e-05,2]
[347776962,1736100639760,-575.77,9.956e-05,2]
[347776963,1736100639769,-500.0,9.956e-05,2]
[347776964,1736100639778,-500.0,9.956e-05,2]
[347776965,1736100639787,-500.0,9.956e-05,2]
[347776966,1736100639796,-927.09,9.956e-05,2]
[347776967,1736100639805,-500.0,9.956e-05,2]
[347776968,1736100639814,-500.0,9.956e-05,2]
[347776969,1736100639823,-938.5,9.956e-05,2]
[347776970,1736100639832,-386.46,9.956e-05,2]
[347776971,1736100639841,-153.20130101,9.956e-05,2]
[347776972,1736100639854,-500.0,9.956e-05,2]
[347776973,1736100639864,-500.0,9.956e-05,2]
[347776974,1736100639873,-477.71560071,9.956e-05,2]
[347776975,1736100639883,-500.0,9.956e-05,2]
[347776976,1736100639894,-968.6,9.956e-05,2]
[347776977,1736100639903,-500.0,9.956e-05,2]
[347776978,1736100639913,-593.2200522,9.956e-05,2]
[347776979,1736100639924,-500.0,9.956e-05,2]
[347776980,1736100639933,-500.0,9.956e-05,2]
[347776981,1736100639942,-1034.92,9.956e-05,2]
[347776982,1736100639952,-500.0,9.956e-05,2]
[347776983,1736100639961,-500.0,9.956e-05,2]
[347776984,1736100639970,-500.0,9.956e-05,2]
[347776985,1736100639979,-618.74,9.956e-05,2]
[347776986,1736100639988,-568.75,9.956e-05,2]
[347776987,1736100639998,-500.0,9.956e-05,2]
[347776988,1736100640007,-500.0,9.956e-05,2]
[347776989,1736100640016,-786.16,9.956e-05,2]
[347776990,1736100640025,-500.0,9.956e-05,2]
[347776991,1736100640034,-1614.92,9.956e-05,2]
[347776992,1736100640043,-515.3,9.956e-05,2]
[347776993,1736100640052,-1064.52,9.956e-05,2]
[347776994,1736100640061,-500.0,9.956e-05,2]
[347776995,1736100640070,-520.25,9.956e-05,2]
[347776996,1736100640080,-812.04,9.956e-05,2]
[347776997,1736100640089,-500.0,9.957e-05,2]
[347776998,1736100640098,-500.0,9.957e-05,2]
[347776999,1736100640107,-500.0,9.957e-05,2]
[347777000,1736100640116,-500.0,9.957e-05,2]
[347777001,1736100640125,-500.0,9.957e-05,2]
[347777002,1736100640134,-500.0,9.957e-05,2]
[347777003,1736100640143,-500.0,9.957e-05,2]
[347777004,1736100640152,-500.0,9.957e-05,2]
[347777005,1736100640161,-500.0,9.957e-05,2]
[347777006,1736100640170,-500.0,9.957e-05,2]
[347777007,1736100640179,-500.0,9.957e-05,2]
[347777008,1736100640188,-717.55,9.957e-05,2]
[347777009,1736100640199,-500.0,9.957e-05,2]
[347777010,1736100640208,-500.0,9.957e-05,2]
[347777011,1736100640217,-500.0,9.957e-05,2]
[347777012,1736100640226,-548.16,9.957e-05,2]
[347777013,1736100640235,-1065.45,9.957e-05,2]
[347777014,1736100640245,-500.0,9.957e-05,2]
[347777015,1736100640253,-901.69,9.957e-05,2]
[347777016,1736100640262,-501.76,9.957e-05,2]
[347777017,1736100640271,-729.76,9.957e-05,2]
[347777018,1736100640281,-937.19,9.957e-05,2]
[347777019,1736100640290,-1022.22,9.957e-05,2]
[347777020,1736100640299,-500.0,9.957e-05,2]
[347777021,1736100640309,-500.0,9.957e-05,2]
[347777022,1736100640318,-516.03,9.959e-05,2]
[347777023,1736100640328,-500.0,9.959e-05,2]
[347777024,1736100640336,-500.0,9.959e-05,2]
[347777025,1736100640346,-500.0,9.959e-05,2]
[347777026,1736100640355,-500.0,9.959e-05,2]
[347777027,1736100640364,-909.86,9.959e-05,2]
[347777028,1736100640374,-815.12,9.959e-05,2]
[347777029,1736100640383,-1077.03,9.959e-05,2]
[347777030,1736100640392,-1996.75,9.959e-05,2]
[347777031,1736100640401,-500.0,9.959e-05,2]
[347777032,1736100640411,-500.0,9.959e-05,2]
[347777033,1736100640420,-522.31,9.959e-05,2]
[347777034,1736100640430,-1119.42,9.959e-05,2]
[347777035,1736100640439,-847.01,9.959e-05,2]
[347777036,1736100640451,-500.0,9.959e-05,2]
[347777037,1736100640461,-842.12,9.959e-05,2]
[347777038,1736100640472,-597.16,9.959e-05,2]
[347777039,1736100640481,-570.39,9.959e-05,2]
[347777040,1736100640490,-727.79,9.959e-05,2]
[347777041,1736100640499,-500.0,9.959e-05,2]
[347777042,1736100640509,-500.0,9.959e-05,2]
[347777043,1736100640518,-261.4084419,9.973e-05,2]
[347777044,1736100640528,-501.40922122,9.973e-05,2]
[347777045,1736100640537,-500.0,9.973e-05,2]
[347777046,1736100640547,-500.0,9.973e-05,2]
[347777047,1736100640556,-398616.64063456,9.997e-05,2]
[347777048,1736100640565,-9618.9562951,9.998e-05,2]
[347777049,1736100640575,-403.494443,9.999e-05,2]
[347777050,1736100640584,-164.033511,9.999e-05,2]
[347777051,1736100640593,-527.702244,9.999e-05,2]
[347777052,1736100640603,-500.0,9.999e-05,2]
[347777053,1736100640612,-500.0,9.999e-05,2]
[347777054,1736100640621,-500.0,9.999e-05,2]
[347777055,1736100640631,-500.0,9.999e-05,2]
[347777056,1736100640640,-500.0,9.999e-05,2]
[347777057,1736100640650,-618.46,9.999e-05,2]
[347777058,1736100640659,-500.0,9.999e-05,2]
[347777059,1736100640668,-500.0,9.999e-05,2]
[347777060,1736100640677,-1015.12,9.999e-05,2]
[347777061,1736100640687,-532.62,9.999e-05,2]
[347777062,1736100640700,-1569.41,9.999e-05,2]
[347777063,1736100640709,-1096.21,9.999e-05,2]
[347777064,1736100640719,-790.85,9.999e-05,2]
[347777065,1736100640729,-1444.48,9.999e-05,2]
[347777066,1736100640738,-95755.44664782,0.0001,2]
[347777067,1736100640959,-826.50000013,0.0001,2]
[347777068,1736100640972,-706.10326874,0.0001,2]
[347777069,1736100640984,-2353.30322499,0.0001,2]
[347777070,1736100641001,-401375.71728106,0.0001,2]
[347777071,1736100641013,-845.88342142,0.0001,2]
[347777072,1736100641024,-14599.8,0.0001,2]
[347777073,1736100641036,-626.54363075,0.0001,2]
[347777074,1736100641047,-1003.5,0.0001,2]
[347777075,1736100641142,-500.0,9.682e-05,2]
[347777076,1736100641151,-931.9734557,0.0001,2]
[347777077,1736100641162,-10049.0,0.0001,2]
[347777078,1736100641173,-327.635,0.0001,2]
[347777079,1736100641184,-8336.40509996,0.0001,2]
[347777080,1736100641201,-3535.69999998,0.0001,2]
[347777081,1736100641212,-3003.0,0.0001,2]
[347777082,1736100641292,-3030.07900557,0.0001,2]
[347777093,1736100642546,-500.0,9.956e-05,2]
[347777094,1736100642555,-4106.95,0.0001,2]
[347777095,1736100642566,-6846.49000001,0.0001,2]
[347777096,1736100642635,-3313.2047406,0.0001,2]
[347777097,1736100642646,-3584.80000002,0.0001,2]
[347777098,1736100642658,-1408.91188919,0.0001,2]
[347777099,1736100642672,-1395.71527919,0.0001,2]
[347777100,1736100642684,-1170.0,0.0001,2]
[347777101,1736100642742,-3992.28420436,0.0001,2]
[347777108,1736100645471,-256.48,9.681e-05,2]
[347777109,1736100645564,-227.247057,9.681e-05,2]
[347777110,1736100645574,-122.752943,9.682e-05,2]
[347777111,1736100645585,-33.24046051,9.682e-05,2]
[347777112,1736100645595,-500.0,9.682e-05,2]
[347777113,1736100645604,-483.727057,9.955e-05,2]
[347777114,1736100645614,-500.0,9.956e-05,2]
[347777116,1736100645623,-17314.56901839,0.0001,2]
[347777117,1736100645634,-5332.0,0.0001,2]
[347777118,1736100645652,-316213.58394599,0.0001,2]
[347777119,1736100645663,-118676.3799999,0.0001,2]
[347777120,1736100645674,-7938.37519832,0.0001,2]
[347777121,1736100645735,-6991.20000002,0.0001,2]
[347777122,1736100645755,-35820.9372795,0.0001,2]
[347777123,1736100645765,-385.032,0.0001,2]
[347777399,1736101831784,-1774.81,8.219e-05,2]
[347777400,1736101831794,-250.0,8.833e-05,2]
[347777401,1736101831803,-618.58459498,8.833e-05,2]
[347777402,1736101831815,-381.41540502,8.833e-05,2]
[347777403,1736101831824,-250.0,8.855e-05,2]
[347777404,1736101831834,-190.49,8.926e-05,2]
[347777405,1736101831843,-251.57058194,9e-05,2]
[347777406,1736101831853,-292.13127966,9e-05,2]
[347777407,1736101831862,-150.0,9e-05,2]
[347777408,1736101831871,-500.0,9.135e-05,2]
[347777409,1736101831881,-545.84,9.135e-05,2]
[347777410,1736101831890,-500.0,9.135e-05,2]
[347777411,1736101831899,-500.0,9.135e-05,2]
[347777412,1736101831908,-166.20714933,9.135e-05,2]
[347777413,1736101831917,-500.0,9.135e-05,2]
[347777414,1736101831926,-500.0,9.135e-05,2]
[347777415,1736101831936,-529.16920048,9.135e-05,2]
[347777416,1736101831945,-600.15532256,9.135e-05,2]
[347777417,1736101831963,-149.15467744,9.135e-05,2]
[347777418,1736101831972,-500.0,9.135e-05,2]
[347777419,1736101831981,-500.0,9.135e-05,2]
[347777420,1736101831991,-699.47,9.135e-05,2]
[347777421,1736101832000,-500.0,9.135e-05,2]
[347777422,1736101832009,-500.0,9.135e-05,2]
[347777423,1736101832019,-500.0,9.135e-05,2]
[347777424,1736101832028,-736.24,9.135e-05,2]
[347777425,1736101832037,-683.21,9.135e-05,2]
[347777426,1736101832047,-861.89,9.135e-05,2]
[347777427,1736101832056,-1715.13,9.135e-05,2]
[347777428,1736101832066,-500.0,9.135e-05,2]
[347777429,1736101832076,-500.0,9.135e-05,2]
[347777430,1736101832085,-500.0,9.135e-05,2]
[347777431,1736101832094,-977.47,9.135e-05,2]
[347777432,1736101832103,-771.75,9.14e-05,2]
[347777433,1736101832113,-771.75,9.14e-05,2]
[347777434,1736101832122,-771.75,9.14e-05,2]
[347777435,1736101832132,-696.52,9.14e-05,2]
[347777436,1736101832142,-873.0,9.178e-05,2]
[347777437,1736101832152,-166.98,9.224e-05,2]
[347777438,1736101832161,-151.0,9.26e-05,2]
[347777439,1736101832172,-500.0,9.409e-05,2]
[347777440,1736101832182,-545.84,9.409e-05,2]
[347777441,1736101832192,-500.0,9.409e-05,2]
[347777442,1736101832203,-500.0,9.409e-05,2]
[347777443,1736101832212,-500.0,9.409e-05,2]
[347777444,1736101832222,-500.0,9.409e-05,2]
[347777445,1736101832231,-749.31,9.409e-05,2]
[347777446,1736101832241,-500.0,9.409e-05,2]
[347777447,1736101832251,-500.0,9.409e-05,2]
[347777448,1736101832260,-699.47,9.409e-05,2]
[347777449,1736101832270,-261.55,9.409e-05,2]
[347777450,1736101832279,-500.0,9.409e-05,2]
[347777451,1736101832289,-736.24,9.409e-05,2]
[347777452,1736101832298,-683.21,9.409e-05,2]
[347777453,1736101832308,-861.89,9.409e-05,2]
[347777455,1736101832318,-1715.13,9.409e-05,2]
[347777457,1736101832328,-500.0,9.409e-05,2]
[347777459,1736101832338,-628.73004171,9.409e-05,2]
[347777460,1736101832347,-500.0,9.409e-05,2]
[347777462,1736101832356,-977.47,9.409e-05,2]
[347777464,1736101832366,-1000.0,9.582e-05,2]
[347777466,1736101832375,-200.0,9.62e-05,2]
[347777468,1736101832385,-515.72,9.681e-05,2]
[347777470,1736101832395,-1149.76,9.681e-05,2]
[347777472,1736101832404,-500.0,9.681e-05,2]
[347777474,1736101832414,-859.71,9.681e-05,2]
[347777476,1736101832424,-650.27,9.681e-05,2]
[347777478,1736101832433,-500.0,9.682e-05,2]
[347777481,1736101832443,-550.6620589,9.682e-05,2]
[347777482,1736101832452,-500.0,9.682e-05,2]
[347777484,1736101832463,-500.0,9.682e-05,2]
[347777488,1736101832472,-500.0,9.682e-05,2]
[347777491,1736101832482,-500.0,9.682e-05,2]
[347777493,1736101832492,-500.0,9.682e-05,2]
[347777496,1736101832501,-500.0,9.682e-05,2]
[347777500,1736101832511,-589.98,9.682e-05,2]
[347777503,1736101832520,-500.0,9.682e-05,2]
[347777507,1736101832530,-500.0,9.682e-05,2]
[347777509,1736101832540,-500.0,9.682e-05,2]
[347777511,1736101832549,-500.0,9.682e-05,2]
[347777513,1736101832558,-520.84,9.682e-05,2]
[347777515,1736101832568,-500.0,9.682e-05,2]
[347777517,1736101832577,-500.0,9.682e-05,2]
[347777519,1736101832587,-500.0,9.682e-05,2]
[347777521,1736101832597,-613.85858389,9.682e-05,2]
[347777523,1736101832606,-500.0,9.682e-05,2]
[347777526,1736101832616,-500.0,9.682e-05,2]
[347777527,1736101832625,-500.0,9.682e-05,2]
[347777529,1736101832635,-500.0,9.682e-05,2]
[347777531,1736101832644,-500.0,9.682e-05,2]
[347777534,1736101832654,-780.99,9.682e-05,2]
[347777536,1736101832665,-663.34,9.682e-05,2]
[347777538,1736101832675,-922.24,9.682e-05,2]
[347777540,1736101832685,-500.0,9.683e-05,2]
[347777542,1736101832694,-545.84,9.683e-05,2]
[347777544,1736101832708,-500.0,9.683e-05,2]
[347777546,1736101832717,-500.0,9.683e-05,2]
[347777548,1736101832727,-500.0,9.683e-05,2]
[347777550,1736101832736,-500.0,9.683e-05,2]
[347777551,1736101832746,-749.31,9.683e-05,2]
[347777554,1736101832757,-500.0,9.683e-05,2]
[347777555,1736101832767,-500.0,9.683e-05,2]
[347777557,1736101832776,-699.47,9.683e-05,2]
[347777559,1736101832787,-500.0,9.683e-05,2]
[347777561,1736101832796,-736.24,9.683e-05,2]
[347777564,1736101832806,-683.21,9.683e-05,2]
[347777565,1736101832816,-861.89,9.683e-05,2]
[347777568,1736101832826,-1715.13,9.683e-05,2]
[347777569,1736101832835,-500.0,9.683e-05,2]
[347777571,1736101832845,-500.0,9.683e-05,2]
[347777573,1736101832854,-977.47,9.683e-05,2]
[347777576,1736101832865,-7464.90124434,9.8e-05,2]
[347777577,1736101832874,-872.67,9.836e-05,2]
[347777580,1736101832884,-365.52,9.836e-05,2]
[347777581,1736101832893,-1955.14,9.836e-05,2]
[347777583,1736101832902,-300.46,9.836e-05,2]
[347777585,1736101832911,-4325.6109,9.857e-05,2]
[347777587,1736101832921,-7690.78256372,9.858e-05,4]
[347777589,1736101832930,-6187.99,9.9e-05,2]
[347777591,1736101832940,-1000.0,9.9e-05,2]
[347777593,1736101832950,-15014.21277449,9.931e-05,2]
[347777596,1736101832960,-1000.0,9.937e-05,2]
[347777598,1736101832970,-515.72,9.955e-05,2]
[347777600,1736101832980,-1149.76,9.955e-05,2]
[347777602,1736101832990,-500.0,9.955e-05,2]
[347777603,1736101832999,-859.71,9.955e-05,2]
[347777606,1736101833009,-650.27,9.955e-05,2]
[347777607,1736101833019,-500.0,9.956e-05,2]
[347777609,1736101833028,-500.0,9.956e-05,2]
[347777611,1736101833038,-500.0,9.956e-05,2]
[347777613,1736101833047,-500.0,9.956e-05,2]
[347777615,1736101833057,-500.0,9.956e-05,2]
[347777617,1736101833067,-500.0,9.956e-05,2]
[347777619,1736101833076,-500.0,9.956e-05,2]
[347777621,1736101833085,-500.0,9.956e-05,2]
[347777623,1736101833095,-500.0,9.956e-05,2]
[347777625,1736101833104,-500.0,9.956e-05,2]
[347777627,1736101833114,-500.0,9.956e-05,2]
[347777629,1736101833123,-500.0,9.956e-05,2]
[347777653,1736101833362,-500.0,9.956e-05,2]
[347777655,1736101833374,-500.0,9.956e-05,2]
[347777657,1736101833384,-780.99,9.956e-05,2]
[347777658,1736101833394,-663.34,9.956e-05,2]
[347777660,1736101833404,-922.24,9.956e-05,2]
[347777662,1736101833413,-500.0,9.957e-05,2]
[347777664,1736101833425,-545.84,9.957e-05,2]
[347777665,1736101833435,-500.0,9.957e-05,2]
[347777667,1736101833446,-500.0,9.957e-05,2]
[347777668,1736101833456,-500.0,9.957e-05,2]
[347777669,1736101833466,-500.0,9.957e-05,2]
[347777670,1736101833476,-749.31,9.957e-05,2]
[347777671,1736101833486,-500.0,9.957e-05,2]
[347777672,1736101833498,-500.0,9.957e-05,2]
[347777673,1736101833510,-500.0,9.957e-05,2]
[347777674,1736101833522,-736.24,9.957e-05,2]
[347777675,1736101833531,-683.21,9.957e-05,2]
[347777676,1736101833541,-861.89,9.957e-05,2]
[347777677,1736101833551,-1715.13,9.957e-05,2]
[347777678,1736101833561,-500.0,9.957e-05,2]
[347777679,1736101833571,-500.0,9.957e-05,2]
[347777680,1736101833581,-977.47,9.957e-05,2]
[347777681,1736101833591,-4402.0,9.973e-05,2]
[347777682,1736101833602,-509.50687697,9.973e-05,2]
[347777683,1736101833612,-500.0,9.973e-05,2]
[347777684,1736101833621,-278.384937,9.996e-05,2]
[347777685,1736101833631,-870.67,9.998e-05,2]
[347777686,1736101833641,-975.74,9.998e-05,2]
[347777687,1736101833651,-500.0,9.998e-05,2]
[347777688,1736101833661,-908.71,9.998e-05,2]
[347777689,1736101833671,-500.0,9.998e-05,2]
[347777690,1736101833681,-635.21,9.998e-05,2]
[347777691,1736101833690,-500.0,9.998e-05,2]
[347777692,1736101833702,-500.0,9.998e-05,2]
[347777693,1736101833711,-500.0,9.998e-05,2]
[347777694,1736101833721,-844.92,9.998e-05,2]
[347777695,1736101833731,-500.0,9.998e-05,2]
[347777696,1736101833740,-500.0,9.998e-05,2]
[347777697,1736101833750,-500.0,9.998e-05,2]
[347777698,1736101833760,-566.22,9.998e-05,2]
[347777699,1736101833770,-385.801254,9.999e-05,2]
[347777700,1736101833780,-467.192026,9.999e-05,2]
[347777701,1736101833789,-500.0,9.999e-05,2]
[347777702,1736101833799,-500.0,9.999e-05,2]
[347777703,1736101833809,-996.64,9.999e-05,2]
[347777704,1736101833818,-500.0,9.999e-05,2]
[347777705,1736101833827,-500.0,9.999e-05,2]
[347777706,1736101833837,-500.0,9.999e-05,2]
[347777707,1736101833846,-500.0,9.999e-05,2]
[347777708,1736101833856,-500.0,9.999e-05,2]
[347777709,1736101833866,-509.74,9.999e-05,2]
[347777710,1736101833875,-500.0,9.999e-05,2]
[347777711,1736101833885,-500.0,9.999e-05,2]
[347777712,1736101833894,-500.0,9.999e-05,2]
[347777713,1736101833904,-500.0,9.999e-05,2]
[347777714,1736101833914,-500.0,9.999e-05,2]
[347777715,1736101833924,-500.0,9.999e-05,2]
[347777716,1736101833934,-500.0,9.999e-05,2]
[347777717,1736101833944,-500.0,9.999e-05,2]
[347777718,1736101833954,-500.0,9.999e-05,2]
[347777719,1736101833963,-500.0,9.999e-05,2]
[347777720,1736101833973,-500.0,9.999e-05,2]
[347777721,1736101833982,-500.0,9.999e-05,2]
[347777722,1736101833991,-500.0,9.999e-05,2]
[347777723,1736101834001,-500.0,9.999e-05,2]
[347777724,1736101834010,-500.0,9.999e-05,2]
[347777725,1736101834019,-500.0,9.999e-05,2]
[347777726,1736101834029,-526.25,9.999e-05,2]
[347777727,1736101834038,-500.0,9.999e-05,2]
[347777728,1736101834048,-500.0,9.999e-05,2]
[347777729,1736101834057,-516.84,9.999e-05,2]
[347777730,1736101834067,-500.0,9.999e-05,2]
[347777731,1736101834076,-500.0,9.999e-05,2]
[347777732,1736101834086,-500.0,9.999e-05,2]
[347777733,1736101834096,-500.0,9.999e-05,2]
[347777734,1736101834105,-500.0,9.999e-05,2]
[347777735,1736101834115,-500.0,9.999e-05,2]
[347777736,1736101834125,-500.0,9.999e-05,2]
[347777737,1736101834135,-500.0,9.999e-05,2]
[347777738,1736101834144,-500.0,9.999e-05,2]
[347777739,1736101834154,-500.0,9.999e-05,2]
[347777740,1736101834164,-500.0,9.999e-05,2]
[347777741,1736101834175,-500.0,9.999e-05,2]
[347777742,1736101834186,-500.0,9.999e-05,2]
[347777743,1736101834195,-500.0,9.999e-05,2]
[347777744,1736101834206,-500.0,9.999e-05,2]
[347777745,1736101834216,-555.81,9.999e-05,2]
[347777746,1736101834226,-500.0,9.999e-05,2]
[347777747,1736101834236,-500.0,9.999e-05,2]
[347777748,1736101834246,-500.0,9.999e-05,2]
[347777749,1736101834255,-500.0,9.999e-05,2]
[347777750,1736101834265,-500.0,9.999e-05,2]
[347777751,1736101834275,-500.0,9.999e-05,2]
[347777752,1736101834286,-500.0,9.999e-05,2]
[347777753,1736101834295,-635.28,9.999e-05,2]
[347777754,1736101834306,-686.73,9.999e-05,2]
[347777755,1736101834316,-500.0,9.999e-05,2]
[347777756,1736101834327,-500.0,9.999e-05,2]
[347777757,1736101834337,-500.0,9.999e-05,2]
[347777758,1736101834348,-500.0,9.999e-05,2]
[347777759,1736101834358,-177.047172,9.999e-05,2]
[347777760,1736101834368,-500.0,9.999e-05,2]
[347777761,1736101834379,-500.0,9.999e-05,2]
[347777762,1736101834388,-500.0,9.999e-05,2]
[347777763,1736101834399,-500.0,9.999e-05,2]
[347777764,1736101834408,-500.0,9.999e-05,2]
[347777765,1736101834419,-500.0,9.999e-05,2]
[347777766,1736101834430,-500.0,9.999e-05,2]
[347777767,1736101834440,-500.0,9.999e-05,2]
[347777768,1736101834450,-500.0,9.999e-05,2]
[347777769,1736101834460,-500.0,9.999e-05,2]
[347777770,1736101834470,-500.0,9.999e-05,2]
[347777771,1736101834480,-500.0,9.999e-05,2]
[347777772,1736101834490,-500.0,9.999e-05,2]
[347777773,1736101834501,-500.0,9.999e-05,2]
[347777774,1736101834512,-500.0,9.999e-05,2]
[347777775,1736101834522,-541.12201573,9.999e-05,2]
[347777776,1736101834533,-500.0,9.999e-05,2]
[347777777,1736101834543,-500.0,9.999e-05,2]
[347777778,1736101834552,-500.0,9.999e-05,2]
[347777779,1736101834562,-613.17,9.999e-05,2]
[347777780,1736101834572,-1705.4,9.999e-05,2]
[347777781,1736101834582,-500.0,9.999e-05,2]
[347777782,1736101834592,-500.0,9.999e-05,2]
[347777783,1736101834602,-563.15,9.999e-05,2]
[347777784,1736101834612,-500.0,9.999e-05,2]
[347777785,1736101834622,-500.0,9.999e-05,2]
[347777786,1736101834632,-500.0,9.999e-05,2]
[347777787,1736101834641,-500.0,9.999e-05,2]
[347777788,1736101834651,-1226.4,9.999e-05,2]
[347777789,1736101834661,-500.0,9.999e-05,2]
[347777790,1736101834671,-500.0,9.999e-05,2]
[347777791,1736101834681,-500.0,9.999e-05,2]